bitfinex/quotes_BTCUSD_20251217
["timestamp","ask_amount","ask_price","bid_price","bid_amount"]
[1765938182989,0.028722,87412.0,87411.0,0.36519973]
[1765938183203,0.14261671,87412.0,87411.0,0.14845244]
[1765938183428,0.26395671,87412.0,87411.0,0.14845244]
[1765938183830,0.18897671,87412.0,87411.0,0.14845244]
[1765938184248,0.14261671,87412.0,87411.0,0.14845244]
[1765938185653,0.14261671,87412.0,87411.0,0.002]
[1765938186787,0.26656671,87412.0,87411.0,0.002]
[1765938191948,0.443372,87412.0,87411.0,0.002]
[1765938192153,0.52506905,87412.0,87411.0,0.002]
[1765938192328,0.5365103,87412.0,87411.0,0.002]
[1765938192689,0.5365103,87412.0,87411.0,0.001]
[1765938193282,0.57727291,87412.0,87411.0,0.001]
[1765938193757,0.01144256,87393.0,87388.0,0.01144321]
[1765938193960,0.11389471,87391.0,87388.0,0.01144321]
[1765938194234,0.11389471,87391.0,87388.0,0.07299854]
[1765938194582,0.11389471,87391.0,87388.0,0.01144321]
[1765938194782,0.11389471,87391.0,87387.0,0.01144334]
[1765938195034,0.11389471,87391.0,87388.0,0.01144321]
[1765938195597,0.11389471,87391.0,87388.0,0.01244321]
[1765938196036,0.11389471,87391.0,87388.0,0.01144321]
[1765938196536,0.11389471,87391.0,87388.0,0.01244321]
[1765938197103,0.11389471,87391.0,87389.0,0.08872763]
[1765938197305,0.0752498,87392.0,87391.0,0.12208]
[1765938197571,0.11389471,87401.0,87400.0,0.06128164]
[1765938197772,0.11389471,87401.0,87400.0,0.12208]
[1765938197773,0.14261931,87401.0,87400.0,0.12208]
[1765938198103,0.14261931,87401.0,87400.0,0.04984]
[1765938198309,0.0571298,87394.0,87393.0,0.01372]
[1765938198513,0.11389471,87394.0,87393.0,0.01372]
[1765938199079,0.13201471,87394.0,87393.0,0.15404804]
[1765938199282,0.01812,87394.0,87393.0,0.22628804]
[1765938199498,0.01812,87394.0,87393.0,0.22728804]
[1765938199707,0.11550758,87401.0,87400.0,0.04984]
[1765938199880,0.14523048,87401.0,87400.0,0.04984]
[1765938200237,0.14523048,87401.0,87397.0,0.22883855]
[1765938200238,0.11389471,87399.0,87397.0,0.22883855]
[1765938200443,0.11389471,87399.0,87398.0,0.04984]
[1765938200642,0.1426171,87399.0,87398.0,0.12208]
[1765938202136,0.1244971,87399.0,87398.0,0.12208]
[1765938202570,0.1436171,87399.0,87398.0,0.12208]
[1765938203005,0.1426171,87399.0,87398.0,0.12208]
[1765938203213,0.1244971,87399.0,87398.0,0.12208]
[1765938203414,0.02872239,87399.0,87398.0,0.26853244]
[1765938203624,0.01060239,87399.0,87398.0,0.32985176]
[1765938203823,0.06773219,87400.0,87399.0,0.35091557]
[1765938204043,0.11389471,87413.0,87412.0,0.12208]
[1765938204244,0.14261668,87413.0,87412.0,0.12208]
[1765938204530,0.14261668,87413.0,87410.0,0.01144033]
[1765938204531,0.22880595,87411.0,87409.0,0.01973]
[1765938204688,0.12449668,87410.0,87409.0,0.01973]
[1765938204870,0.12449668,87410.0,87409.0,0.01873]
[1765938205889,0.0571298,87404.0,87402.0,0.05001839]
[1765938206096,0.01812,87403.0,87402.0,0.05001839]
[1765938208297,0.01812,87403.0,87402.0,0.05101839]
[1765938208458,0.01812,87403.0,87402.0,0.10085839]
[1765938208861,0.01812,87403.0,87402.0,0.17209839]
[1765938209097,0.13201471,87403.0,87402.0,0.10085839]
[1765938209553,0.0752498,87403.0,87402.0,0.14745244]
[1765938210134,0.0752498,87403.0,87402.0,0.19729244]
[1765938210334,0.0752498,87403.0,87402.0,0.26853244]
[1765938210836,0.01812,87403.0,87402.0,0.26853244]
[1765938211243,0.11389471,87410.0,87409.0,0.06128046]
[1765938211418,0.14262303,87410.0,87409.0,0.13252046]
[1765938211620,0.14262303,87410.0,87409.0,0.12108]
[1765938211819,0.0571298,87404.0,87403.0,0.04984]
[1765938212205,0.067738,87404.0,87403.0,0.04984]
[1765938212403,0.0571298,87404.0,87403.0,0.04984]
[1765938212605,0.0571298,87404.0,87403.0,0.12108]
[1765938213180,0.0571298,87407.0,87406.0,0.04984]
[1765938213353,0.06774053,87407.0,87406.0,0.04984]
[1765938215045,0.01061073,87407.0,87406.0,0.04984]
[1765938215229,0.11389471,87403.0,87402.0,0.14645244]
[1765938215429,0.12450544,87403.0,87401.0,0.05001839]
[1765938215749,0.11389471,87403.0,87401.0,0.05001839]
[1765938216083,0.11389471,87403.0,87402.0,0.04702]
[1765938216306,0.24025413,87408.0,87403.0,0.01144125]
[1765938216525,0.0571298,87404.0,87403.0,0.11722]
[1765938216750,0.06774347,87404.0,87403.0,0.11722]
[1765938216965,0.06774347,87404.0,87403.0,0.04598]
[1765938217781,0.25087726,87404.0,87401.0,0.05001839]
[1765938218016,0.06774347,87403.0,87401.0,0.05001839]
[1765938218245,0.0571298,87403.0,87401.0,0.05001839]
[1765938219285,0.0571298,87403.0,87402.0,0.04598]
[1765938219524,0.06774511,87403.0,87402.0,0.04598]
[1765938220065,0.06774511,87403.0,87401.0,0.05101839]
[1765938220277,0.0571298,87403.0,87402.0,0.04598]
[1765938220489,0.06774536,87403.0,87402.0,0.04598]
[1765938221071,0.06774536,87403.0,87402.0,0.04698]
[1765938221272,0.06774536,87403.0,87402.0,0.19638]
[1765938222457,0.06774536,87403.0,87402.0,0.42520771]
[1765938222635,0.06774536,87403.0,87402.0,0.49644771]
[1765938223076,0.06774536,87403.0,87402.0,0.26762]
[1765938223721,0.01061556,87403.0,87402.0,0.40352531]
[1765938223932,0.00161287,87410.0,87409.0,0.11722]
[1765938224146,0.03035035,87410.0,87409.0,0.11722]
[1765938224360,0.03035035,87410.0,87409.0,0.17749092]
[1765938224773,0.03035035,87410.0,87409.0,0.40630031]
[1765938225200,0.03135035,87410.0,87409.0,0.40630031]
[1765938225633,0.03035035,87410.0,87409.0,0.40730031]
[1765938226290,0.08748015,87410.0,87409.0,0.40730031]
[1765938226700,0.03035035,87410.0,87409.0,0.40730031]
[1765938226871,0.03035035,87410.0,87409.0,0.40830031]
[1765938227232,0.03035035,87410.0,87409.0,0.55770031]
[1765938227447,0.01973287,87410.0,87409.0,0.55770031]
[1765938227652,0.03035113,87410.0,87409.0,0.49742939]
[1765938228013,0.01973287,87410.0,87409.0,0.49742939]
[1765938229357,0.03035137,87410.0,87409.0,0.49742939]
[1765938230152,0.11389471,87423.0,87422.0,0.34599536]
[1765938230357,0.14263319,87423.0,87422.0,0.27475536]
[1765938230512,0.02873848,87423.0,87421.0,0.03345]
[1765938230718,0.06774828,87422.0,87421.0,0.03345]
[1765938231327,0.01061848,87422.0,87421.0,0.21441506]
[1765938231551,0.001,87423.0,87422.0,0.39601375]
[1765938231759,0.02012,87423.0,87422.0,0.39601375]
[1765938231960,0.01912,87423.0,87422.0,0.39601375]
[1765938232397,0.01912,87423.0,87422.0,0.39501375]
[1765938232820,0.01812,87423.0,87422.0,0.5113449]
[1765938233324,0.01812,87423.0,87422.0,0.39401375]
[1765938234005,0.01812,87423.0,87422.0,0.39501375]
[1765938235616,0.0752498,87423.0,87422.0,0.001]
[1765938235815,0.30563541,87423.0,87422.0,0.001]
[1765938236028,0.49309648,87423.0,87422.0,0.001]
[1765938236649,0.22879368,87415.0,87414.0,0.03145]
[1765938236854,0.22879368,87415.0,87409.0,0.03145]
[1765938236855,0.0571298,87411.0,87409.0,0.03145]
[1765938237056,0.24025839,87406.0,87403.0,0.08068125]
[1765938237260,0.0571298,87404.0,87403.0,0.17667964]
[1765938237481,0.06857066,87406.0,87405.0,0.11522]
[1765938237892,0.0571298,87406.0,87405.0,0.11522]
[1765938239381,0.0571298,87406.0,87405.0,0.11622]
[1765938239586,0.0114406,87408.0,87405.0,0.001]
[1765938239825,0.0114406,87408.0,87407.0,0.11522]
[1765938240587,0.01812,87410.0,87409.0,0.07743]
[1765938240795,0.01812,87410.0,87409.0,0.14667]
[1765938241745,0.00161287,87415.0,87414.0,0.11522]
[1765938241951,0.01973287,87415.0,87414.0,0.11522]
[1765938242110,0.01973287,87415.0,87414.0,0.26462]
[1765938242741,0.01973287,87415.0,87414.0,0.19538]
[1765938242934,0.13362758,87415.0,87414.0,0.26462]
[1765938243136,0.37302752,87415.0,87414.0,0.26462]
[1765938243343,0.37302752,87415.0,87414.0,0.19538]
[1765938243767,0.14423384,87415.0,87414.0,0.26462]
[1765938244368,0.03033913,87415.0,87414.0,0.26462]
[1765938244547,0.01973287,87415.0,87414.0,0.26462]
[1765938244750,0.01973287,87415.0,87414.0,0.19538]
[1765938244982,0.0303402,87415.0,87414.0,0.19538]
[1765938245178,0.0303402,87415.0,87414.0,0.19738]
[1765938245819,0.0303402,87415.0,87414.0,0.26562]
[1765938246255,0.0303402,87415.0,87414.0,0.26662]
[1765938246256,0.08747,87415.0,87414.0,0.26662]
[1765938246457,0.08747,87415.0,87414.0,0.26762]
[1765938246958,0.0303402,87415.0,87414.0,0.26762]
[1765938247169,0.14423491,87415.0,87414.0,0.4964163]
[1765938247465,0.01973287,87415.0,87414.0,0.4964163]
[1765938249420,0.01812,87415.0,87414.0,0.4964163]
[1765938250181,0.0114385,87424.0,87414.0,0.4964163]
[1765938250182,0.0685683,87424.0,87423.0,0.04535]
[1765938250392,0.09730065,87424.0,87423.0,0.04535]
[1765938251084,0.04017085,87424.0,87423.0,0.04535]
[1765938251295,0.09730065,87424.0,87423.0,0.04535]
[1765938252330,0.09730065,87424.0,87420.0,0.06924]
[1765938252331,0.28590778,87421.0,87420.0,0.06924]
[1765938252562,0.29652013,87421.0,87420.0,0.06924]
[1765938253110,0.30795902,87421.0,87418.0,0.01143929]
[1765938253317,0.01061235,87420.0,87419.0,0.04535]
[1765938254380,0.02873235,87420.0,87419.0,0.11459]
[1765938254967,0.08586215,87420.0,87419.0,0.04535]
[1765938255347,0.08586215,87420.0,87419.0,0.04635]
[1765938255732,0.02873235,87420.0,87419.0,0.04635]
[1765938256485,0.02873235,87420.0,87419.0,0.11559]
[1765938256901,0.0858683,87420.0,87419.0,0.11559]
[1765938257340,0.14263321,87420.0,87419.0,0.11559]
[1765938257552,0.0858683,87420.0,87419.0,0.11559]
[1765938258143,0.0858683,87420.0,87419.0,0.04635]
[1765938260853,0.0858683,87420.0,87419.0,0.001]
[1765938262835,0.08748117,87420.0,87419.0,0.001]
[1765938263984,0.08748117,87420.0,87419.0,0.11559]
[1765938264990,0.03035137,87420.0,87419.0,0.11559]
[1765938266060,0.25913196,87420.0,87419.0,0.11559]
[1765938266252,0.25913196,87420.0,87419.0,0.04635]
[1765938266469,0.25913196,87420.0,87419.0,0.001]
[1765938266470,0.31626176,87420.0,87419.0,0.001]
[1765938266594,0.08748117,87420.0,87419.0,0.11559]
[1765938268134,0.08748117,87420.0,87419.0,0.34437321]
[1765938269339,0.0106185,87420.0,87419.0,0.34437321]
[1765938269653,0.01808,87420.0,87419.0,0.34437321]
[1765938270064,0.0286985,87420.0,87419.0,0.34437321]
[1765938271713,0.0286985,87420.0,87419.0,0.49377321]
[1765938272902,0.0286985,87420.0,87419.0,0.5437916]
[1765938273078,0.01808,87420.0,87419.0,0.64736071]
[1765938273289,0.0114368,87437.0,87419.0,0.64736071]
[1765938273290,0.0685666,87437.0,87436.0,0.11459]
[1765938273490,0.08745426,87437.0,87436.0,0.04535]
[1765938274160,0.11389471,87434.0,87433.0,0.04991]
[1765938274377,0.1245263,87434.0,87433.0,0.04991]
[1765938275190,0.1245263,87434.0,87433.0,0.11915]
[1765938275612,0.1255263,87434.0,87433.0,0.11915]
[1765938276377,0.1265263,87434.0,87433.0,0.11915]
[1765938277806,0.1265263,87434.0,87433.0,0.26855]
[1765938280646,0.1265263,87434.0,87433.0,0.37365781]
[1765938281661,0.1255263,87434.0,87433.0,0.26855]
[1765938281875,0.1245263,87434.0,87433.0,0.26855]
[1765938282022,0.01063159,87434.0,87433.0,0.26955]
[1765938282224,0.01063159,87436.0,87435.0,0.11571]
[1765938283881,0.01063159,87436.0,87435.0,0.11671]
[1765938284846,0.01063159,87436.0,87435.0,0.11771]
[1765938285465,0.01969287,87437.0,87436.0,0.34444873]
[1765938285870,0.03031249,87437.0,87436.0,0.34444873]
[1765938286586,0.03031249,87437.0,87436.0,0.49484873]
[1765938286831,0.03031249,87437.0,87436.0,0.60545138]
[1765938287781,0.03031249,87437.0,87436.0,0.60445138]
[1765938287976,0.03031249,87437.0,87436.0,0.60545138]
[1765938288203,0.02869962,87437.0,87436.0,0.60645138]
[1765938288751,0.01808,87437.0,87436.0,0.49584873]
[1765938289447,0.02869925,87437.0,87436.0,0.49584873]
[1765938289646,0.02869925,87437.0,87436.0,0.51457873]
[1765938289800,0.01808,87437.0,87436.0,0.51457873]
[1765938293488,0.01808,87437.0,87436.0,0.56459712]
[1765938293847,0.01808,87437.0,87436.0,0.68092827]
[1765938294979,0.01808,87437.0,87436.0,0.67992827]
[1765938295451,0.01808,87437.0,87436.0,0.68192827]
[1765938295982,0.01808,87437.0,87436.0,0.68092827]
[1765938296394,0.01808,87437.0,87436.0,0.68392827]
[1765938296857,0.01808,87437.0,87436.0,0.68192827]
[1765938297291,0.01143405,87458.0,87457.0,0.06536]
[1765938297502,0.04174826,87458.0,87457.0,0.06536]
[1765938297937,0.09887806,87458.0,87457.0,0.06536]
[1765938299003,0.08744401,87458.0,87457.0,0.1346]
[1765938299888,0.03031421,87458.0,87457.0,0.1346]
[1765938300238,0.03031421,87458.0,87457.0,0.06536]
[1765938300434,0.08744401,87458.0,87457.0,0.1346]
[1765938300634,0.01223421,87458.0,87457.0,0.23011642]
[1765938300998,0.01223421,87458.0,87455.0,0.1494]
[1765938300999,0.01969287,87458.0,87455.0,0.1494]
[1765938301202,0.23744471,87456.0,87455.0,0.1494]
[1765938301416,0.23744471,87456.0,87440.0,0.1494]
[1765938301417,0.07704,87441.0,87440.0,0.1494]
[1765938301627,0.51241036,87441.0,87440.0,0.1494]
[1765938301833,0.52303124,87441.0,87440.0,0.1494]
[1765938302156,0.14259559,87441.0,87440.0,0.26511]
[1765938302489,0.14259559,87441.0,87440.0,0.1494]
[1765938302711,0.21726559,87441.0,87440.0,0.1494]
[1765938302908,0.14259559,87441.0,87440.0,0.1494]
[1765938303517,0.14259559,87441.0,87440.0,0.1504]
[1765938303712,0.14259559,87441.0,87440.0,0.1514]
[1765938304560,0.13197471,87441.0,87440.0,0.1514]
[1765938305170,0.14260538,87441.0,87440.0,0.1514]
[1765938305756,0.02871067,87441.0,87440.0,0.1514]
[1765938305963,0.14260538,87441.0,87440.0,0.49906827]
[1765938306492,0.01808,87441.0,87440.0,0.6504588]
[1765938306867,0.01808,87441.0,87440.0,0.54908666]
[1765938309133,0.11389471,87451.0,87450.0,0.34764211]
[1765938309339,0.14260939,87451.0,87450.0,0.34764211]
[1765938309745,0.02871468,87451.0,87450.0,0.34764211]
[1765938310055,0.02871468,87451.0,87450.0,0.0497]
[1765938310056,0.14260939,87451.0,87450.0,0.0497]
[1765938310670,0.37130889,87451.0,87450.0,0.0497]
[1765938310876,0.37130889,87451.0,87449.0,0.01889]
[1765938311081,0.01063468,87450.0,87449.0,0.01889]
[1765938311993,0.01063468,87450.0,87449.0,0.10528395]
[1765938312192,0.13197471,87451.0,87450.0,0.27840211]
[1765938312558,0.11389471,87463.0,87462.0,0.34761073]
[1765938312710,0.1426145,87463.0,87462.0,0.34761073]
[1765938313922,0.1436145,87463.0,87462.0,0.11894]
[1765938314167,0.1436145,87463.0,87462.0,0.0497]
[1765938314383,0.22867073,87462.0,87461.0,0.01889]
[1765938314600,0.23931052,87462.0,87461.0,0.01889]
[1765938314831,0.28581361,87457.0,87456.0,0.03145]
[1765938315008,0.2964534,87457.0,87456.0,0.03145]
[1765938315209,0.06776959,87457.0,87456.0,0.03145]
[1765938315528,0.06776959,87457.0,87456.0,0.15039]
[1765938315866,0.06776959,87457.0,87456.0,0.03145]
[1765938316290,0.11389471,87450.0,87449.0,0.01889]
[1765938316611,0.13197471,87450.0,87449.0,0.01889]
[1765938318751,0.13197471,87450.0,87449.0,0.06859]
[1765938321035,0.13197471,87450.0,87449.0,0.13783]
[1765938321449,0.13197471,87450.0,87449.0,0.13773147]
[1765938322245,0.13197471,87450.0,87449.0,0.28713147]
[1765938322476,0.13197471,87450.0,87449.0,0.36616027]
[1765938322610,0.01808,87450.0,87449.0,0.28713147]
[1765938323601,0.0752098,87450.0,87449.0,0.28713147]
[1765938323817,0.0752098,87450.0,87449.0,0.21789147]
[1765938324137,0.01808,87450.0,87449.0,0.21789147]
[1765938324352,0.24671798,87450.0,87449.0,0.16819147]
[1765938324550,0.37125049,87450.0,87449.0,0.16819147]
[1765938325615,0.14254838,87450.0,87449.0,0.16819147]
[1765938325825,0.01801587,87450.0,87449.0,0.36222514]
[1765938326036,0.00161287,87457.0,87456.0,0.34752642]
[1765938326241,0.11389471,87459.0,87458.0,0.34752119]
[1765938326448,0.03437526,87466.0,87463.0,0.36639812]
[1765938326646,0.0183304,87464.0,87463.0,0.45220343]
[1765938326804,0.02896889,87464.0,87463.0,0.45220343]
[1765938327013,0.02896889,87464.0,87463.0,0.50222182]
[1765938327637,0.02896889,87464.0,87463.0,0.43308182]
[1765938327861,0.02896889,87464.0,87463.0,0.50222182]
[1765938329450,0.08609869,87464.0,87463.0,0.11860839]
[1765938329680,0.08609869,87464.0,87463.0,0.12060839]
[1765938330083,0.08609869,87464.0,87463.0,0.12160839]
[1765938330289,0.0754602,87464.0,87463.0,0.12160839]
[1765938330698,0.0754602,87464.0,87463.0,0.18974839]
[1765938331074,0.0754602,87464.0,87463.0,0.19074839]
[1765938331300,0.0754602,87464.0,87463.0,0.18874839]
[1765938331492,0.0754602,87464.0,87463.0,0.12060839]
[1765938332267,0.08608957,87464.0,87463.0,0.12060839]
[1765938332473,0.08608957,87464.0,87463.0,0.18974839]
[1765938336644,0.02895977,87464.0,87463.0,0.18974839]
[1765938336858,0.02895977,87464.0,87463.0,0.27399121]
[1765938337173,0.02895977,87464.0,87463.0,0.42339121]
[1765938337948,0.08608957,87464.0,87463.0,0.42339121]
[1765938338329,0.02895977,87464.0,87463.0,0.42339121]
[1765938339103,0.02895977,87464.0,87463.0,0.33914839]
[1765938339323,0.08608957,87464.0,87463.0,0.33914839]
[1765938340188,0.02895977,87464.0,87463.0,0.33914839]
[1765938340796,0.02896359,87464.0,87463.0,0.33914839]
[1765938351519,0.31475889,87464.0,87463.0,0.33914839]
[1765938351708,0.31475889,87464.0,87463.0,0.1514]
[1765938351709,0.52758667,87464.0,87463.0,0.1514]
[1765938351909,0.56196453,87464.0,87463.0,0.1514]
[1765938352119,0.56176453,87464.0,87463.0,0.1514]
[1765938352257,0.59242027,87464.0,87463.0,0.1514]
[1765938352682,0.59242027,87464.0,87463.0,0.1504]
[1765938352902,0.59242027,87464.0,87463.0,0.1494]
[1765938353303,0.56176453,87464.0,87463.0,0.1504]
[1765938353634,0.56176453,87464.0,87463.0,0.1494]
[1765938353855,0.56276453,87464.0,87463.0,0.1494]
[1765938354066,0.56376453,87464.0,87463.0,0.1494]
[1765938354409,0.52938667,87464.0,87463.0,0.1494]
[1765938354822,0.46168667,87464.0,87446.0,0.1494]
[1765938355027,0.24014217,87449.0,87447.0,0.12105457]
[1765938355228,0.01808,87448.0,87447.0,0.17005457]
[1765938356420,0.01808,87448.0,87447.0,0.10191457]
[1765938357402,0.01808,87448.0,87447.0,0.17105457]
[1765938357634,0.01808,87448.0,87447.0,0.39976453]
[1765938357838,0.11389471,87450.0,87447.0,0.39976453]
[1765938357839,0.26461245,87461.0,87460.0,0.03155]
[1765938358058,0.26882422,87461.0,87460.0,0.03155]
[1765938358273,0.26882422,87461.0,87447.0,0.05391457]
[1765938358274,0.0114351,87450.0,87447.0,0.05391457]
[1765938358477,0.01808,87449.0,87447.0,0.05391457]
[1765938358680,0.01808,87449.0,87447.0,0.002]
[1765938358869,0.22870734,87448.0,87447.0,0.002]
[1765938359416,0.28583714,87448.0,87447.0,0.11814]
[1765938359648,0.0571298,87448.0,87447.0,0.11814]
[1765938360279,0.0571298,87448.0,87447.0,0.049]
[1765938360499,0.0571298,87448.0,87447.0,0.051]
[1765938360937,0.0571298,87448.0,87447.0,0.2004]
[1765938361428,0.0571298,87448.0,87447.0,0.26954]
[1765938362205,0.0571298,87448.0,87447.0,0.49824996]
[1765938362387,0.0571298,87448.0,87447.0,0.60715266]
[1765938363046,0.01808,87449.0,87448.0,0.11814]
[1765938363263,0.06856372,87459.0,87458.0,0.08055]
[1765938363473,0.24012442,87455.0,87453.0,0.03155]
[1765938363679,0.12452662,87454.0,87453.0,0.03155]
[1765938365500,0.01063191,87454.0,87453.0,0.25486031]
[1765938365920,0.02206596,87458.0,87455.0,0.01143445]
[1765938367441,0.01143419,87457.0,87453.0,0.13959031]
[1765938367717,0.0571298,87454.0,87453.0,0.13959031]
[1765938367943,0.06776171,87454.0,87453.0,0.13959031]
[1765938368414,0.06776171,87454.0,87453.0,0.18572031]
[1765938368797,0.06776224,87454.0,87453.0,0.18572031]
[1765938369036,0.06776224,87454.0,87453.0,0.25486031]
[1765938369505,0.06776224,87454.0,87453.0,0.18572031]
[1765938369899,0.06776224,87454.0,87453.0,0.18772031]
[1765938370305,0.08584224,87454.0,87453.0,0.25686031]
[1765938370707,0.08584224,87454.0,87453.0,0.18772031]
[1765938372126,0.08584224,87454.0,87453.0,0.25686031]
[1765938372509,0.08584224,87454.0,87453.0,0.18772031]
[1765938372722,0.08584224,87454.0,87453.0,0.07968]
[1765938373911,0.02871244,87454.0,87453.0,0.14882]
[1765938376220,0.02871244,87454.0,87453.0,0.07968]
[1765938376421,0.02871244,87454.0,87453.0,0.14882]
[1765938379571,0.02871244,87454.0,87453.0,0.07968]
[1765938379791,0.02871244,87454.0,87453.0,0.15867348]
[1765938381090,0.02871244,87454.0,87453.0,0.22781348]
[1765938382194,0.14260715,87454.0,87453.0,0.002]
[1765938382395,0.29731715,87454.0,87453.0,0.002]
[1765938382619,0.32797145,87454.0,87453.0,0.002]
[1765938382825,0.29731715,87454.0,87453.0,0.002]
[1765938383365,0.29731715,87454.0,87453.0,0.001]
[1765938383593,0.29731715,87454.0,87431.0,0.05001839]
[1765938383594,0.11389471,87432.0,87431.0,0.05001839]
[1765938383795,0.11389471,87430.0,87428.0,0.2287577]
[1765938384417,0.11389471,87430.0,87429.0,0.17672624]
[1765938384864,0.11389471,87430.0,87429.0,0.09614839]
[1765938385063,0.11389471,87430.0,87429.0,0.39404543]
[1765938386572,0.11389471,87430.0,87429.0,0.39604543]
[1765938386980,0.11389471,87430.0,87429.0,0.16928839]
[1765938387695,0.01808,87432.0,87431.0,0.11527]
[1765938388357,0.11389471,87445.0,87444.0,0.04613]
[1765938388567,0.14260669,87445.0,87444.0,0.3439878]
[1765938389000,0.02871198,87445.0,87444.0,0.3439878]
[1765938389218,0.02871198,87445.0,87444.0,0.45230473]
[1765938391658,0.02871198,87445.0,87444.0,0.45330473]
[1765938392293,0.02871198,87445.0,87444.0,0.45430473]
[1765938392727,0.01808,87445.0,87444.0,0.45430473]
[1765938393754,0.01808,87445.0,87444.0,0.50432312]
[1765938396420,0.01808,87445.0,87444.0,0.65372312]
[1765938398560,0.01808,87445.0,87444.0,0.50432312]
[1765938398777,0.01808,87445.0,87444.0,0.94442312]
[1765938399439,0.00166327,87464.0,87463.0,0.1484]
[1765938399646,0.03037221,87464.0,87463.0,0.1484]
[1765938399854,0.37293242,87464.0,87463.0,0.03155]
[1765938400662,0.37293242,87464.0,87463.0,0.03255]
[1765938401538,0.14426692,87464.0,87463.0,0.03255]
[1765938401758,0.14426692,87464.0,87463.0,0.04386241]
[1765938401960,0.14426692,87464.0,87463.0,0.15971241]
[1765938402171,0.14426692,87464.0,87463.0,0.09057241]
[1765938402376,0.14426692,87464.0,87463.0,0.15971241]
[1765938404116,0.29724504,87458.0,87457.0,0.03155]
[1765938404336,0.29724504,87458.0,87447.0,0.05001839]
[1765938404337,0.12533007,87448.0,87447.0,0.05001839]
[1765938404546,0.11389471,87447.0,87446.0,0.01889]
[1765938404784,0.34260467,87447.0,87446.0,0.01889]
[1765938404995,0.34260467,87447.0,87446.0,0.0666]
[1765938405425,0.34260467,87447.0,87446.0,0.13574]
[1765938406047,0.11389471,87447.0,87446.0,0.13574]
[1765938406253,0.11389471,87447.0,87446.0,0.13874]
[1765938407226,0.11389471,87447.0,87446.0,0.0696]
[1765938407623,0.11389471,87447.0,87446.0,0.13874]
[1765938408037,0.25822509,87448.0,87447.0,0.11685]
[1765938408038,0.01808,87448.0,87447.0,0.11685]
[1765938408357,0.01808,87448.0,87447.0,0.15588386]
[1765938408564,0.0752098,87448.0,87447.0,0.15588386]
[1765938409088,0.01808,87448.0,87447.0,0.08674386]
[1765938409218,0.01808,87448.0,87447.0,0.04971]
[1765938410313,0.01808,87448.0,87447.0,0.11885]
[1765938410841,0.01808,87448.0,87447.0,0.04971]
[1765938411100,0.0752098,87448.0,87447.0,0.04971]
[1765938411237,0.0752098,87448.0,87447.0,0.11885]
[1765938411586,0.01808,87448.0,87447.0,0.08978747]
[1765938411745,0.01808,87448.0,87447.0,0.04971]
[1765938411953,0.26325571,87448.0,87447.0,0.002]
[1765938413572,0.26325571,87448.0,87447.0,0.001]
[1765938414090,0.26425571,87448.0,87447.0,0.001]
[1765938414296,0.26425571,87448.0,87430.0,0.05001839]
[1765938414297,0.11389471,87432.0,87431.0,0.04771]
[1765938414508,0.13197471,87432.0,87431.0,0.04771]
[1765938414713,0.3607239,87432.0,87431.0,0.04771]
[1765938415699,0.3607239,87432.0,87431.0,0.04971]
[1765938416368,0.3607239,87432.0,87431.0,0.002]
[1765938417339,0.3607239,87432.0,87431.0,0.001]
[1765938417545,0.11389471,87425.0,87424.0,0.16686839]
[1765938417744,0.01808,87432.0,87431.0,0.11685]
[1765938419317,0.01808,87432.0,87431.0,0.04771]
[1765938419713,0.01808,87432.0,87424.0,0.12006904]
[1765938419714,0.01143798,87428.0,87427.0,0.11685]
[1765938419918,0.12533269,87428.0,87427.0,0.11685]
[1765938420852,0.11389471,87428.0,87427.0,0.11885]
[1765938421629,0.11389471,87428.0,87427.0,0.12085]
[1765938422464,0.01808,87432.0,87431.0,0.11685]
[1765938423359,0.01808,87432.0,87431.0,0.04771]
[1765938424186,0.01808,87432.0,87431.0,0.04971]
[1765938424380,0.01808,87432.0,87431.0,0.11885]
[1765938424505,0.01808,87432.0,87431.0,0.1504]
[1765938425066,0.01808,87432.0,87431.0,0.19289226]
[1765938425283,0.0114368,87437.0,87436.0,0.11822]
[1765938425476,0.24018121,87434.0,87431.0,0.03355]
[1765938425675,0.01143719,87434.0,87433.0,0.04908]
[1765938426462,0.24017566,87436.0,87433.0,0.11822]
[1765938427300,0.24017566,87436.0,87435.0,0.11822]
[1765938427500,0.24017566,87436.0,87435.0,0.04908]
[1765938428371,0.35407037,87436.0,87435.0,0.04908]
[1765938428798,0.35407037,87436.0,87435.0,0.05008]
[1765938430062,0.35407037,87436.0,87435.0,0.05108]
[1765938433338,0.36469777,87436.0,87435.0,0.05108]
[1765938433545,0.12452211,87436.0,87435.0,0.10636045]
[1765938433749,0.01808,87437.0,87436.0,0.11822]
[1765938434822,0.01808,87437.0,87436.0,0.18196271]
[1765938435026,0.01808,87437.0,87436.0,0.16923839]
[1765938435249,0.01808,87437.0,87436.0,0.10009839]
[1765938435486,0.14261094,87437.0,87436.0,0.11220168]
[1765938435740,0.13197471,87437.0,87436.0,0.05101839]
[1765938435941,0.13197471,87437.0,87436.0,0.05201839]
[1765938436092,0.13197471,87437.0,87436.0,0.17023839]
[1765938436296,0.01808,87437.0,87436.0,0.05108]
[1765938436817,0.01808,87437.0,87436.0,0.12022]
[1765938436961,0.01808,87437.0,87436.0,0.17824129]
[1765938437407,0.0752098,87437.0,87436.0,0.17824129]
[1765938437790,0.01808,87437.0,87436.0,0.17824129]
[1765938438630,0.0752098,87437.0,87436.0,0.17824129]
[1765938440079,0.01808,87437.0,87436.0,0.17824129]
[1765938440281,0.02872634,87437.0,87436.0,0.17824129]
[1765938441738,0.08585614,87437.0,87436.0,0.17824129]
[1765938442126,0.02872634,87437.0,87436.0,0.17824129]
[1765938442534,0.01808,87437.0,87436.0,0.17824129]
[1765938443612,0.02872914,87437.0,87436.0,0.17824129]
[1765938443846,0.02872915,87437.0,87436.0,0.17824129]
[1765938444003,0.01808,87437.0,87436.0,0.17824129]
[1765938444211,0.01808,87437.0,87436.0,0.12022]
[1765938445024,0.01808,87437.0,87436.0,0.34895873]
[1765938445987,0.01808,87437.0,87436.0,0.39897712]
[1765938446948,0.01808,87437.0,87436.0,0.39797712]
[1765938447892,0.01808,87437.0,87436.0,0.16923839]
[1765938448135,0.01808,87437.0,87436.0,0.22956408]
[1765938448308,0.01808,87437.0,87436.0,0.23056408]
[1765938448526,0.01808,87437.0,87436.0,0.23256408]
[1765938450105,0.01808,87437.0,87436.0,0.38196408]
[1765938450909,0.01808,87437.0,87436.0,0.61070281]
[1765938454632,0.01808,87437.0,87436.0,0.38196408]
[1765938454983,0.01808,87437.0,87436.0,0.32063839]